bitfinex/quotes_SOLUSD_20250415
["timestamp","ask_amount","ask_price","bid_price","bid_amount"]
[1744690157644,10.1567714,130.29,130.24,7.678]
[1744690157839,7.6757,130.28,130.24,10.1567714]
[1744690160655,7.6757,130.28,130.23,7.82066157]
[1744690160837,7.6757,130.28,130.24,10.1567714]
[1744690161033,7.95942314,130.29,130.24,17.8346714]
[1744690161251,7.95942314,130.29,130.25,10.1567714]
[1744690163258,9.2546,130.3,130.26,10.1567714]
[1744690164957,9.2546,130.3,130.27,10.1567714]
[1744690165159,1.5798,130.3,130.27,10.1567714]
[1744690165552,1.5798,130.3,130.28,10.1567714]
[1744690165743,80.8,130.31,130.28,10.1567714]
[1744690166156,88.4741,130.31,130.26,7.6769]
[1744690166362,88.4741,130.31,130.27,10.1567714]
[1744690167663,98.6308714,130.31,130.26,10.29893297]
[1744690168066,98.6308714,130.31,130.26,10.1567714]
[1744690169845,88.4741,130.31,130.28,10.1567714]
[1744690170161,88.4741,130.31,130.27,10.1567714]
[1744690171547,98.6308714,130.31,130.26,10.1567714]
[1744690172580,10.44109454,130.3,130.25,10.1567714]
[1744690173168,0.28432314,130.3,130.26,10.1567714]
[1744690174075,7.6751,130.29,130.26,10.1567714]
[1744690179181,7.6751,130.29,130.26,6.50257269]
[1744690180068,7.95912314,130.3,130.26,6.50257269]
[1744690184293,7.6748,130.3,130.27,6.50257269]
[1744690184577,88.4742,130.31,130.27,6.50257269]
[1744690185180,0.03,130.32,130.29,6.50257269]
[1744690185480,0.03,130.32,130.3,6.50257269]
[1744690186888,0.03,130.32,130.31,6.50257269]
[1744690187470,0.03,130.32,130.31,14.17657269]
[1744690188268,0.03,130.32,130.31,6.50257269]
[1744690190783,0.03,130.32,130.3,14.17707269]
[1744690191888,0.03,130.32,130.31,6.50257269]
[1744690192987,0.03,130.32,130.31,14.17657269]
[1744690193583,0.03,130.32,130.31,6.50257269]
[1744690195285,0.03,130.32,130.31,14.17657269]
[1744690196981,0.03,130.32,130.31,14.31873426]
[1744690201392,0.03,130.32,130.31,6.50257269]
[1744690202088,0.03,130.32,130.29,6.50257269]
[1744690202998,0.03,130.32,130.28,6.50257269]
[1744690203172,0.03,130.32,130.29,6.50257269]
[1744690204486,0.03,130.32,130.29,14.17757269]
[1744690204687,0.03,130.32,130.3,6.50257269]
[1744690204883,0.03,130.32,130.31,6.50257269]
[1744690207600,0.03,130.32,130.3,6.50257269]
[1744690207775,0.03,130.32,130.29,6.50257269]
[1744690208296,0.03,130.32,130.28,6.50257269]
[1744690209382,7.7034,130.32,130.28,6.50257269]
[1744690209772,6.50257269,130.29,130.24,0.14216157]
[1744690209991,6.50257269,130.29,130.24,6.50257269]
[1744690210199,6.50257269,130.28,130.23,17.08257269]
[1744690211096,14.17847269,130.28,130.23,24.76097269]
[1744690211273,7.6759,130.28,130.24,6.50257269]
[1744690212197,14.17847269,130.28,130.23,17.08257269]
[1744690212912,6.78689583,130.27,130.23,6.50257269]
[1744690213072,6.50257269,130.28,130.23,14.18117269]
[1744690214409,14.17857269,130.28,130.23,6.50257269]
[1744690215400,6.50257269,130.25,130.19,10.58]
[1744690215608,6.50257269,130.24,130.19,17.08257269]
[1744690216184,0.28432314,130.24,130.2,6.50257269]
[1744690216602,7.6787,130.23,130.19,17.08257269]
[1744690217018,7.6787,130.23,130.19,6.50257269]
[1744690218808,7.6787,130.23,130.19,14.18357269]
[1744690219209,7.6787,130.23,130.19,6.50257269]
[1744690219509,7.6787,130.23,130.2,6.50257269]
[1744690221015,7.6783,130.24,130.2,6.50257269]
[1744690221215,7.6783,130.24,130.21,6.50257269]
[1744690222412,7.96202314,130.25,130.21,6.50257269]
[1744690223816,7.6777,130.25,130.21,6.50257269]
[1744690224020,89.0606,130.27,130.23,6.50257269]
[1744690224712,96.7371,130.27,130.23,6.50257269]
[1744690227922,90.0804,130.27,130.24,6.50257269]
[1744690228423,90.0804,130.27,130.23,6.50257269]
[1744690231219,96.58297269,130.27,130.22,6.50257269]
[1744690231517,96.58297269,130.27,130.21,7.82176157]
[1744690231518,6.50257269,130.26,130.21,6.50257269]
[1744690231699,13.13017269,130.24,130.19,14.32553426]
[1744690233818,20.80877269,130.24,130.19,14.18337269]
[1744690234020,6.50257269,130.21,130.16,6.50257269]
[1744690234617,6.50257269,130.21,130.15,0.28432314]
[1744690234618,6.50257269,130.21,130.17,6.50257269]
[1744690234811,8.01637269,130.22,130.17,6.50257269]
[1744690235218,7.6799,130.21,130.18,6.50257269]
[1744690235515,1.5138,130.26,130.21,0.28432314]
[1744690235724,1.5138,130.26,130.25,6.50257269]
[1744690237024,1.5138,130.26,130.23,6.50257269]
[1744690237411,1.5138,130.26,130.24,6.50257269]
[1744690237915,100.5652,130.3,130.25,6.50257269]
[1744690238109,100.5652,130.3,130.26,6.50257269]
[1744690239126,100.5652,130.3,130.26,14.17937269]
[1744690240231,100.5652,130.3,130.27,6.50257269]
[1744690240528,100.5652,130.3,130.28,6.50257269]
[1744690240529,82.3106,130.3,130.28,6.50257269]
[1744690240725,1.5106,130.3,130.28,6.50257269]
[1744690241108,0.03,130.32,130.29,6.50257269]
[1744690242422,0.03,130.32,130.29,7.6749]
[1744690242635,0.03,130.32,130.31,6.50257269]
[1744690242806,0.03,130.32,130.3,6.50257269]
[1744690244028,0.03,130.32,130.29,6.50257269]
[1744690244334,0.03,130.32,130.28,6.50257269]
[1744690244504,0.03,130.32,130.29,6.50257269]
[1744690247333,6.50257269,130.31,130.26,6.50257269]
[1744690248330,7.6745,130.31,130.27,6.50257269]
[1744690249034,14.17707269,130.31,130.26,6.50257269]
[1744690249235,7.6745,130.31,130.27,6.50257269]
[1744690250320,25.43654469,130.3,130.24,10.58]
[1744690250638,1.6193,130.29,130.25,6.50257269]
[1744690251017,1.6193,130.29,130.26,6.50257269]
[1744690251333,1.6193,130.29,130.27,6.50257269]
[1744690251535,7.6745,130.31,130.26,7.6765]
[1744690251743,7.6745,130.31,130.28,6.50257269]
[1744690252339,7.6745,130.31,130.27,6.50257269]
[1744690254442,0.28432314,130.3,130.23,0.14216157]
[1744690254642,6.50257269,130.27,130.21,0.14216157]
[1744690254854,6.50257269,130.26,130.22,6.50257269]
[1744690255221,8.12157269,130.27,130.22,6.50257269]
[1744690255821,7.6769,130.26,130.22,6.50257269]
[1744690256223,1.619,130.27,130.25,6.50257269]
[1744690256748,1.619,130.27,130.24,6.50257269]
[1744690257047,9.2955,130.27,130.24,6.50257269]
[1744690257941,9.2955,130.27,130.23,0.14216157]
[1744690257942,1.619,130.27,130.25,6.50257269]
[1744690258326,9.52542314,130.3,130.26,6.50257269]
[1744690258525,9.2411,130.3,130.26,6.50257269]
[1744690259553,1.5663,130.3,130.28,6.50257269]
[1744690260459,9.2409,130.3,130.28,6.50257269]
[1744690260965,1.5663,130.3,130.28,6.50257269]
[1744690263754,1.5663,130.3,130.27,6.50257269]
[1744690264865,1.5663,130.3,130.26,7.6766]
[1744690265039,1.5663,130.3,130.27,6.50257269]
[1744690266067,1.5663,130.3,130.26,0.14216157]
[1744690266360,1.5663,130.3,130.27,6.50257269]
[1744690266762,7.6742,130.31,130.28,6.50257269]
[1744690267264,7.98772314,130.32,130.28,6.50257269]
[1744690267668,14.49029583,130.32,130.27,6.50257269]
[1744690270253,14.49029583,130.32,130.26,14.32103426]
[1744690270849,14.49029583,130.32,130.27,6.50257269]
[1744690271786,14.49029583,130.32,130.23,6.0679]
[1744690271787,26.28432314,130.29,130.23,6.0679]
[1744690271945,34.00707269,130.28,130.21,7.82206157]
[1744690272150,34.00707269,130.28,130.22,6.50257269]
[1744690272965,7.6769,130.26,130.22,6.50257269]
[1744690273772,7.6769,130.26,130.22,14.18177269]
[1744690273955,7.6766,130.27,130.24,6.50257269]
[1744690275374,19.7405,130.28,130.24,6.50257269]
[1744690275573,12.0645,130.28,130.24,14.18057269]
[1744690275756,1.5045,130.28,130.26,6.50257269]
[1744690276073,7.6754,130.29,130.26,6.50257269]
[1744690277552,7.95882314,130.3,130.26,6.50257269]
[1744690279555,6.78689583,130.28,130.23,6.50257269]
[1744690280459,6.50257269,130.24,130.17,0.28432314]
[1744690280674,6.50257269,130.23,130.18,6.50257269]
[1744690280988,6.50257269,130.23,130.17,36.64473426]
[1744690281282,6.50257269,130.23,130.17,30.14216157]
[1744690281453,6.50257269,130.23,130.18,6.50257269]
[1744690281653,7.6793,130.22,130.18,6.50257269]
[1744690282574,2.86321241,130.21,130.18,6.50257269]
[1744690283186,7.6793,130.22,130.18,6.50257269]
[1744690284684,7.6793,130.22,130.19,6.50257269]
[1744690285206,2.86054685,130.21,130.19,6.50257269]
[1744690285888,7.6787,130.23,130.19,6.50257269]
[1744690286080,26.8755,130.23,130.19,6.50257269]
[1744690286387,2.85854752,130.22,130.18,6.50257269]
[1744690287181,33.37807269,130.23,130.18,6.50257269]
[1744690287791,33.37807269,130.23,130.17,0.14216157]
[1744690288274,33.37807269,130.23,130.18,6.50257269]
[1744690288702,7.6799,130.21,130.18,6.50257269]
[1744690288864,7.6799,130.21,130.19,6.50257269]
[1744690291091,26.8755,130.23,130.19,6.50257269]
[1744690291294,7.6787,130.23,130.2,6.50257269]
[1744690291503,7.6775,130.25,130.21,6.50257269]
[1744690291684,2.85698657,130.24,130.22,6.50257269]
[1744690291886,2.85698657,130.24,130.2,6.50257269]
[1744690292372,2.85698657,130.23,130.2,6.50257269]
[1744690293196,7.6787,130.23,130.2,6.50257269]
[1744690295474,7.96242314,130.24,130.2,6.50257269]
[1744690296097,2.85668205,130.23,130.2,6.50257269]
[1744690296878,7.96242314,130.24,130.2,6.50257269]
[1744690297586,27.15772314,130.24,130.2,6.50257269]
[1744690298300,2.8566303,130.23,130.2,6.50257269]
[1744690298495,2.8566303,130.23,130.19,6.50257269]
[1744690299301,33.66029583,130.24,130.19,6.50257269]
[1744690300879,2.85648844,130.23,130.2,6.50257269]
[1744690301377,7.6793,130.22,130.2,6.50257269]
[1744690301701,10.56,130.26,130.2,6.50257269]
[1744690301702,7.6769,130.26,130.22,0.14216157]
[1744690301908,7.6766,130.27,130.22,0.14216157]
[1744690302079,7.6766,130.27,130.25,6.50257269]
[1744690303407,7.96002314,130.28,130.25,6.50257269]
[1744690304082,7.6757,130.28,130.26,6.50257269]
[1744690304286,12.1742,130.3,130.27,6.50257269]
[1744690305005,12.1742,130.3,130.28,6.50257269]
[1744690305405,19.849,130.3,130.28,6.50257269]
[1744690305787,7.7048,130.3,130.28,6.50257269]
[1744690307891,7.7048,130.3,130.27,6.50257269]
[1744690315406,7.7048,130.3,130.28,6.50257269]
[1744690315800,7.7048,130.3,130.27,6.50257269]
[1744690316005,7.7048,130.3,130.26,0.14216157]
[1744690316206,7.7048,130.3,130.28,6.50257269]
[1744690316913,0.03,130.3,130.27,6.50257269]
[1744690319913,0.03,130.3,130.28,6.50257269]
[1744690322319,0.03,130.3,130.26,7.6769]
[1744690322616,0.03,130.3,130.28,6.50257269]
[1744690324725,0.03,130.3,130.29,6.64473426]
[1744690324897,0.03,130.3,130.29,6.78689583]
[1744690326127,0.03,130.3,130.29,14.46199583]
[1744690326798,0.03,130.3,130.29,43.67164469]
[1744690327323,0.03,130.3,130.29,25.02199583]
[1744690328328,0.03,130.3,130.29,17.20473426]
[1744690329321,0.03,130.3,130.29,24.87983426]
[1744690329503,0.03,130.3,130.29,25.02199583]
[1744690333022,0.03,130.32,130.31,26.0]
[1744690333203,0.03,130.32,130.31,32.64473426]
[1744690333709,0.03,130.33,130.31,51.43654469]
[1744690333912,0.03,130.35,130.32,51.44683545]
[1744690334206,0.03,130.35,130.34,32.79718659]
[1744690334523,0.03,130.36,130.35,18.933972]
[1744690334708,0.03,130.36,130.35,6.78689583]
[1744690334914,0.03,130.36,130.35,14.45849583]
[1744690338329,0.03,130.36,130.35,14.31633426]
[1744690339620,0.03,130.36,130.35,14.45849583]
[1744690342424,0.03,130.36,130.35,33.10814469]
[1744690342742,0.03,130.37,130.35,33.10814469]
[1744690342905,0.03,130.4,130.37,0.14216157]
[1744690343108,0.03,130.4,130.39,0.14216157]
[1744690343332,0.03,130.4,130.39,14.31393426]
[1744690344120,0.03,130.4,130.39,7.81136157]
[1744690344324,0.03,130.4,130.39,14.31393426]
[1744690347605,0.03,130.4,130.34,36.71245233]
[1744690347810,1.5915,130.39,130.35,0.14216157]
[1744690348027,1.5915,130.39,130.37,6.50257269]
[1744690348736,1.5915,130.39,130.38,6.50257269]
[1744690349141,0.03,130.4,130.38,6.50257269]
[1744690349439,0.03,130.4,130.39,6.50257269]
[1744690350935,0.03,130.4,130.39,14.31393426]
[1744690351327,0.03,130.4,130.39,6.50257269]
[1744690352333,0.03,130.4,130.37,6.50257269]
[1744690354042,7.6987,130.4,130.37,6.50257269]
[1744690354540,7.6987,130.4,130.36,6.50257269]
[1744690356245,7.6987,130.4,130.35,6.50257269]
[1744690356246,0.28432314,130.39,130.35,6.50257269]
[1744690356444,6.50257269,130.36,130.29,0.34732314]
[1744690356741,6.50257269,130.36,130.31,6.50257269]
[1744690356941,6.50257269,130.36,130.32,6.50257269]
[1744690357137,0.28432314,130.36,130.32,6.50257269]
[1744690357525,7.95582314,130.36,130.32,6.50257269]
[1744690358749,7.95582314,130.36,130.31,6.50257269]
[1744690358750,14.45839583,130.36,130.31,6.50257269]
[1744690359830,14.45839583,130.36,130.31,14.17647269]
[1744690360947,7.95582314,130.36,130.32,6.50257269]
[1744690361843,14.45839583,130.36,130.31,6.50257269]
[1744690362031,7.95582314,130.36,130.32,6.50257269]
[1744690363331,14.45839583,130.36,130.31,6.50257269]
[1744690364627,14.45839583,130.36,130.29,0.063]
[1744690364628,6.50257269,130.33,130.29,0.063]
[1744690365544,6.92682314,130.34,130.29,0.063]
[1744690365545,6.50257269,130.32,130.29,0.063]
[1744690365855,6.92682314,130.34,130.29,0.063]
[1744690366154,6.50257269,130.33,130.29,0.063]
[1744690366535,14.17587269,130.33,130.29,0.063]
[1744690367045,7.6733,130.33,130.29,6.56557269]
[1744690369444,7.6733,130.33,130.29,14.24067269]
[1744690370452,13.42939583,130.34,130.3,6.50257269]
[1744690370453,7.6723,130.34,130.3,6.50257269]
[1744690370638,7.6723,130.34,130.31,6.50257269]
[1744690370951,7.6723,130.34,130.3,6.50257269]
[1744690371150,14.17487269,130.34,130.29,6.56557269]
[1744690371956,6.78689583,130.33,130.29,0.063]
[1744690373148,7.6734,130.32,130.29,0.063]
[1744690374751,14.17597269,130.32,130.29,0.063]
[1744690376830,1.5781,130.31,130.29,0.063]
[1744690377348,51.43654469,130.3,130.25,0.063]
[1744690377553,1.541,130.26,130.25,0.063]
[1744690378249,12.06602372,130.29,130.25,6.56557269]
[1744690378453,12.06602372,130.29,130.26,6.50257269]
[1744690378638,9.2163,130.29,130.26,6.50257269]
[1744690380141,9.2163,130.29,130.25,7.7403]
[1744690380142,9.2163,130.29,130.25,6.56557269]
[1744690380342,6.50257269,130.27,130.25,0.063]
[1744690381356,9.2163,130.29,130.25,0.063]
[1744690381536,15.71887269,130.29,130.25,0.063]
[1744690381738,6.78689583,130.27,130.25,0.063]
[1744690381934,6.50257269,130.26,130.25,0.063]
[1744690382132,14.32163426,130.26,130.25,0.063]
[1744690382774,15.93203426,130.26,130.25,0.063]
[1744690383161,19.59926973,130.26,130.25,0.063]
[1744690384958,9.2873,130.26,130.25,0.063]
[1744690385337,19.88359287,130.26,130.25,0.063]
[1744690387449,19.7414313,130.26,130.25,0.063]
[1744690387940,1.6104,130.26,130.25,0.063]
[1744690388560,9.2873,130.26,130.25,0.063]
[1744690389060,1.6104,130.26,130.25,0.063]
[1744690389261,80.8,130.29,130.25,0.063]
[1744690389440,44.14840816,130.3,130.25,10.23280816]
[1744690389635,0.28432314,130.29,130.25,10.23280816]
[1744690390063,10.4541313,130.29,130.25,0.063]
[1744690390370,18.1295313,130.29,130.25,0.063]
[1744690391343,10.16980816,130.28,130.25,0.063]
[1744690391538,7.6763,130.27,130.25,0.063]
[1744690391938,7.676,130.28,130.25,0.063]
[1744690393367,17.84580816,130.28,130.25,0.063]
[1744690394360,7.676,130.28,130.25,0.063]
[1744690396670,11.77650816,130.3,130.25,10.37496973]
[1744690396857,10.56,130.32,130.28,10.16980816]
[1744690397065,20.72980816,130.32,130.27,10.16980816]
[1744690398167,10.16980816,130.28,130.25,0.063]
[1744690399571,7.6763,130.27,130.25,0.063]
[1744690401747,7.6759,130.28,130.25,0.063]
[1744690404174,17.84510816,130.29,130.25,0.063]
[1744690404353,7.6753,130.29,130.25,10.23280816]
[1744690404872,2.85356836,130.28,130.25,10.23280816]
[1744690405673,7.6753,130.29,130.25,10.23280816]
[1744690407370,14.17874527,130.29,130.25,0.063]
[1744690407873,2.85644212,130.28,130.25,0.063]
[1744690408258,2.85644212,130.28,130.25,6.56644527]
[1744690408467,10.53224212,130.28,130.25,6.56644527]
[1744690408767,7.6758,130.28,130.25,6.56644527]
[1744690409462,7.95942314,130.29,130.25,6.56644527]
[1744690409974,14.46286841,130.29,130.25,0.063]
[1744690410154,2.85884392,130.28,130.25,0.063]
[1744690411077,10.53534392,130.27,130.25,0.063]
[1744690411879,7.6765,130.27,130.25,0.063]
[1744690412254,14.17914527,130.28,130.25,0.063]
[1744690412455,7.6757,130.28,130.25,0.063]
[1744690414371,14.17914527,130.28,130.25,0.063]
[1744690414955,2.86085534,130.27,130.25,0.063]
[1744690415380,10.53735534,130.27,130.25,0.063]
[1744690415673,6.78776841,130.26,130.25,0.063]
[1744690415871,6.92992998,130.26,130.25,0.063]
[1744690416365,9.79276457,130.26,130.25,0.063]
[1744690416678,9.650603,130.26,130.25,0.063]
[1744690416877,17.327503,130.26,130.25,0.063]
[1744690418873,10.82405773,130.26,130.25,0.063]
[1744690419376,17.327503,130.26,130.25,0.063]
[1744690423082,17.46966457,130.26,130.25,0.063]
[1744690425887,36.11931343,130.26,130.25,0.063]
[1744690429990,56.40363657,130.26,130.25,0.0001]
[1744690430303,18.933972,130.24,130.23,0.063]
[1744690430490,25.72174041,130.24,130.23,0.063]
[1744690430677,28.584575,130.24,130.23,0.063]
[1744690431067,28.44241343,130.24,130.23,0.063]
[1744690431481,36.262675,130.24,130.23,0.063]
[1744690436796,29.61706816,130.24,130.23,0.063]
[1744690437001,36.12051343,130.24,130.23,0.063]
[1744690437202,10.54093459,130.24,130.23,0.063]
[1744690437701,10.82525773,130.24,130.23,0.063]
[1744690438003,10.68309616,130.24,130.23,0.063]
[1744690438590,10.82525773,130.24,130.23,0.063]
[1744690438788,17.328703,130.24,130.23,0.063]
[1744690439807,10.82525773,130.24,130.23,0.063]
[1744690440811,17.328703,130.24,130.23,0.063]
[1744690442817,36.12051343,130.24,130.23,0.063]
[1744690443311,36.262675,130.24,130.23,0.063]
[1744690448508,17.47086457,130.24,130.23,0.063]
[1744690448814,17.04437986,130.24,130.23,0.063]
[1744690449509,17.47086457,130.24,130.23,0.063]
[1744690452791,36.12051343,130.24,130.23,0.063]
[1744690456023,36.262675,130.24,130.23,0.063]
[1744690459514,36.262675,130.24,130.23,0.0001]
[1744690461827,56.40483657,130.24,130.23,0.0001]
[1744690463530,79.44483657,130.24,130.23,0.0001]
[1744690463938,61.973972,130.22,130.21,0.0001]
[1744690464111,0.42648471,130.18,130.17,0.063]
[1744690464309,25.57957884,130.18,130.17,0.063]
[1744690464835,6.92992998,130.18,130.17,0.063]
[1744690465132,9.79276457,130.18,130.17,0.063]
[1744690466445,17.47436457,130.18,130.17,0.063]
[1744690467238,36.12401343,130.18,130.17,0.063]
[1744690467915,36.12401343,130.18,130.13,0.063]
[1744690467916,0.42648471,130.16,130.13,0.063]
[1744690468116,6.64560684,130.14,130.13,0.063]
[1744690468527,14.32960684,130.14,130.13,0.063]
[1744690468737,17.19244143,130.14,130.13,0.063]
[1744690469825,36.268575,130.14,130.13,0.063]
[1744690471237,40.0469952,130.14,130.13,0.063]
[1744690475237,40.18915677,130.14,130.13,0.063]
[1744690475446,40.18915677,130.14,130.13,0.0001]
[1744690477121,63.22915677,130.14,130.13,0.0001]
[1744690477936,44.64964886,130.12,130.11,0.063]
[1744690478242,51.43741727,130.12,130.11,0.063]
[1744690478635,54.30025186,130.12,130.11,0.063]
[1744690479221,61.98545186,130.12,130.11,0.063]
[1744690483045,62.269775,130.12,130.11,0.063]
[1744690483543,72.829775,130.12,130.11,0.063]
[1744690492441,72.68761343,130.12,130.11,0.063]
[1744690492750,54.03796457,130.12,130.11,0.063]
[1744690493727,51.17512998,130.12,130.11,0.063]
[1744690498652,54.02445455,130.12,130.11,0.063]
[1744690501761,72.81626498,130.12,130.11,0.0001]
[1744690502452,72.67410341,130.12,130.11,0.0001]
[1744690502836,47.52100928,130.12,130.11,0.0001]
[1744690503157,53.59796984,130.12,130.11,0.0001]
[1744690503375,47.09452457,130.12,130.11,0.0001]
[1744690503537,13.40932457,130.12,130.11,0.0001]
[1744690503736,2.84932457,130.12,130.11,0.0001]
[1744690504356,7.6852,130.12,130.11,0.0001]
[1744690506054,10.54454444,130.12,130.11,0.0001]
[1744690506363,2.85934444,130.12,130.11,0.0001]
[1744690506956,9.78927442,130.12,130.11,0.0001]
[1744690507265,51.62108485,130.12,130.11,0.0001]
[1744690507753,59.30628485,130.12,130.11,0.0001]
[1744690508550,36.12412328,130.12,130.11,0.0001]
[1744690510855,46.68412328,130.12,130.11,0.0001]
[1744690511547,46.82628485,130.12,130.11,0.0001]
[1744690517567,69.86628485,130.12,130.11,0.0001]
[1744690520258,26.0,130.09,130.07,0.063]
[1744690520479,6.92992998,130.08,130.07,0.063]
[1744690520648,3.28582915,130.08,130.07,0.063]
[1744690522275,10.97332915,130.08,130.07,0.063]
[1744690523267,10.83116758,130.08,130.07,0.063]
[1744690524864,2.85934444,130.08,130.07,0.063]
[1744690525283,2.85934444,130.08,130.07,14.63874527]
[1744690526375,2.85934444,130.1,130.07,22.32644527]
[1744690526577,2.85934444,130.1,130.09,6.50344527]
[1744690526882,2.85934444,130.1,130.08,6.50344527]
[1744690527457,7.6859,130.11,130.08,6.50344527]
[1744690527982,7.6852,130.12,130.08,6.50344527]
[1744690528480,2.87239142,130.11,130.08,6.50344527]
[1744690528951,2.87239142,130.1,130.08,6.50344527]
[1744690529574,7.6858,130.11,130.08,6.50344527]
[1744690530458,7.6852,130.12,130.08,6.50344527]
[1744690531687,10.55716396,130.11,130.08,6.50344527]
[1744690532379,2.87116396,130.1,130.08,6.50344527]
[1744690532786,7.686,130.11,130.08,6.50344527]
[1744690534191,7.6852,130.12,130.08,6.50344527]
[1744690534662,2.87067301,130.11,130.08,6.50344527]
[1744690535466,2.87067301,130.1,130.09,6.50344527]
[1744690536289,2.87067301,130.1,130.08,14.19054527]
[1744690536455,2.87067301,130.1,130.08,6.50344527]
[1744690536787,2.87067301,130.1,130.08,14.19094527]
[1744690537082,7.6853,130.12,130.08,14.19094527]
[1744690537882,2.87007499,130.11,130.08,14.19094527]
[1744690538780,7.6853,130.12,130.08,14.19094527]
[1744690540478,2.86925337,130.11,130.08,14.19094527]
[1744690540657,10.55525337,130.11,130.07,8.1353]
[1744690540862,10.55525337,130.11,130.08,6.50344527]
[1744690541471,2.86925337,130.1,130.08,6.50344527]
[1744690542989,7.6855,130.12,130.08,6.50344527]
[1744690543288,7.6855,130.12,130.09,6.50344527]
[1744690543673,2.86883918,130.11,130.09,6.50344527]
[1744690544574,7.6855,130.12,130.09,6.50344527]
[1744690544788,7.6855,130.12,130.08,14.19084527]
[1744690545769,14.47256841,130.13,130.09,6.50344527]
[1744690545971,2.86857811,130.11,130.09,6.50344527]
[1744690546287,2.86857811,130.11,130.09,14.19034527]
[1744690546471,2.86857811,130.11,130.09,6.50344527]
[1744690546670,2.86857811,130.11,130.1,6.50344527]
[1744690547573,2.86857811,130.11,130.1,6.64560684]
[1744690547779,7.6828,130.16,130.1,14.33140684]
[1744690548078,7.6828,130.16,130.12,6.50344527]
[1744690548782,2.86699312,130.15,130.12,6.50344527]
[1744690549186,2.86699312,130.14,130.12,6.50344527]
[1744690549991,10.55109312,130.14,130.09,0.14216157]
[1744690550168,17.05453839,130.14,130.09,6.50344527]
[1744690550492,2.86699312,130.13,130.09,6.50344527]
[1744690550678,2.86699312,130.13,130.1,6.50344527]
[1744690551071,2.86699312,130.12,130.1,6.50344527]
[1744690551770,7.6847,130.13,130.1,6.50344527]
[1744690553379,2.86583574,130.12,130.1,6.50344527]
[1744690553985,7.96832314,130.14,130.1,6.50344527]
[1744690555194,10.55034869,130.13,130.1,6.50344527]
[1744690555994,7.6836,130.15,130.1,14.18954527]
[1744690556174,7.6831,130.16,130.12,6.50344527]
[1744690556697,2.86474152,130.15,130.14,6.50344527]
[1744690557787,7.7125,130.17,130.14,6.50344527]
[1744690558377,2.86358199,130.16,130.14,6.50344527]
[1744690558975,2.86358199,130.16,130.15,0.14216157]
[1744690559167,2.86358199,130.16,130.15,6.64560684]
[1744690559384,0.03,130.17,130.15,6.64560684]
[1744690559587,0.03,130.17,130.16,14.18624527]
[1744690560300,0.03,130.17,130.16,14.32840684]
[1744690563298,0.03,130.17,130.16,14.47056841]
[1744690563502,0.03,130.17,130.16,98.98706841]
[1744690563800,0.03,130.18,130.17,0.28432314]
[1744690563994,0.03,130.18,130.17,6.78776841]
[1744690564581,0.03,130.19,130.18,18.79181043]
[1744690564784,0.03,130.19,130.18,25.2952557]
[1744690565283,0.03,130.19,130.18,32.9768557]
[1744690565800,0.03,130.22,130.19,0.28432314]
[1744690565988,0.03,130.22,130.21,6.64560684]
[1744690567699,0.03,130.22,130.21,6.50344527]
[1744690568495,0.03,130.22,130.18,7.6814]
[1744690568799,0.03,130.22,130.19,6.50344527]
[1744690569205,0.03,130.22,130.21,6.50344527]
[1744690569506,0.03,130.22,130.21,14.18334527]
[1744690570496,0.03,130.22,130.21,6.50344527]
[1744690570699,0.03,130.22,130.19,6.50344527]
[1744690571408,6.50344527,130.21,130.16,6.50344527]
[1744690572513,7.6804,130.2,130.16,6.50344527]
[1744690572688,6.78776841,130.19,130.13,0.14216157]
[1744690572885,6.50344527,130.17,130.13,6.50344527]
[1744690573895,6.50344527,130.15,130.1,83.0]
[1744690574214,6.50344527,130.15,130.1,6.64560684]
[1744690574394,8.12064527,130.16,130.11,6.50344527]
[1744690574598,7.6834,130.15,130.11,6.50344527]
[1744690575518,6.78776841,130.14,130.07,83.063]
[1744690575688,6.78776841,130.14,130.09,6.50344527]
[1744690576111,0.28432314,130.14,130.1,6.50344527]
[1744690576317,14.18684527,130.15,130.1,6.50344527]
[1744690577938,16.08806841,130.16,130.12,6.50344527]
[1744690578386,16.08806841,130.16,130.11,6.50344527]